[Event "*** Titled Tuesday Blitz"]
[Site "Chess.com"]
[Date "2019.10.01"]
[Round "6"]
[White "TrimitziosP7"]
[Black "LastHeroJr"]
[Result "0-1"]
[WhiteElo "2742"]
[BlackElo "2539"]
[TimeControl "180+2"]
[EndTime "14:25:41 PDT"]
[Termination "LastHeroJr won on time"]

1. Nf3 {[%clk 0:03:01.9]} 1... Nf6 {[%clk 0:03:00.7]} 2. b3 {[%clk 0:03:03.1]}
2... g6 {[%clk 0:03:01]} 3. Bb2 {[%clk 0:03:04.5]} 3... Bg7 {[%clk 0:03:02.4]}
4. g3 {[%clk 0:03:06]} 4... O-O {[%clk 0:03:03.1]} 5. Bg2 {[%clk 0:03:07.5]}
5... d6 {[%clk 0:03:04.5]} 6. d4 {[%clk 0:03:08]} 6... c5 {[%clk 0:03:05.6]} 7.
O-O {[%clk 0:03:08.8]} 7... cxd4 {[%clk 0:03:06.8]} 8. Nxd4 {[%clk 0:03:10.7]}
8... d5 {[%clk 0:03:08.3]} 9. c4 {[%clk 0:03:04.8]} 9... dxc4 {[%clk 0:03:10.2]}
10. bxc4 {[%clk 0:03:05.8]} 10... Qb6 {[%clk 0:03:11.8]} 11. Nb3 {[%clk
0:03:06.4]} 11... Nc6 {[%clk 0:02:36.7]} 12. Nc3 {[%clk 0:03:06.3]} 12... Rd8
{[%clk 0:02:22.9]} 13. Qc1 {[%clk 0:03:06.3]} 13... Be6 {[%clk 0:02:15.5]} 14.
c5 {[%clk 0:03:04.5]} 14... Qa6 {[%clk 0:02:05.3]} 15. Rd1 {[%clk 0:02:59.1]}
15... Rac8 {[%clk 0:01:59.7]} 16. e4 {[%clk 0:02:58.7]} 16... Nb4 {[%clk
0:01:47.7]} 17. Bf1 {[%clk 0:02:54.6]} 17... Bc4 {[%clk 0:01:48.3]} 18. e5
{[%clk 0:02:10.1]} 18... Ng4 {[%clk 0:01:33.1]} 19. Bxc4 {[%clk 0:01:27.5]}
19... Qxc4 {[%clk 0:01:32.7]} 20. Qf4 {[%clk 0:01:12.1]} 20... Nxe5 {[%clk
0:01:21]} 21. Qe3 {[%clk 0:01:01]} 21... Nc2 {[%clk 0:01:14.7]} 22. Qc1 {[%clk
0:00:25.6]} 22... Nxa1 {[%clk 0:01:10.7]} 23. Qxa1 {[%clk 0:00:27.5]} 23... Nd3
{[%clk 0:01:05.1]} 24. Na4 {[%clk 0:00:15.2]} 24... Nxb2 {[%clk 0:01:01.2]} 25.
Nxb2 {[%clk 0:00:13.1]} 25... Rxd1+ {[%clk 0:01:00.1]} 26. Qxd1 {[%clk
0:00:11.4]} 26... Bxb2 {[%clk 0:01:00.7]} 27. Qd7 {[%clk 0:00:12.1]} 27... Qe6
{[%clk 0:00:52.6]} 28. Qxb7 {[%clk 0:00:12.7]} 28... a5 {[%clk 0:00:48.1]} 29.
Nxa5 {[%clk 0:00:09.4]} 29... Rxc5 {[%clk 0:00:41.2]} 30. Nb3 {[%clk 0:00:07.2]}
30... Rc8 {[%clk 0:00:35.8]} 31. h4 {[%clk 0:00:06.1]} 31... Qc6 {[%clk
0:00:36.4]} 32. Qxe7 {[%clk 0:00:06.3]} 32... Bf6 {[%clk 0:00:34.3]} 33. Qe2
{[%clk 0:00:06.5]} 33... Qc4 {[%clk 0:00:34.1]} 34. Qf3 {[%clk 0:00:06.5]} 34...
Qc6 {[%clk 0:00:34]} 35. Qe2 {[%clk 0:00:07.1]} 35... h5 {[%clk 0:00:33]} 36.
Kh2 {[%clk 0:00:07.4]} 36... Re8 {[%clk 0:00:32.5]} 37. Qd2 {[%clk 0:00:08.1]}
37... Qb6 {[%clk 0:00:29.4]} 0-1

[Event "*** Titled Tuesday Blitz"]
[Site "Chess.com"]
[Date "2019.10.01"]
[Round "6"]
[White "Tolya2"]
[Black "PNEPaul"]
[Result "0-1"]
[WhiteElo "2389"]
[BlackElo "1898"]
[TimeControl "180+2"]
[EndTime "14:25:44 PDT"]
[Termination "PNEPaul won by resignation"]

1. Nf3 {[%clk 0:03:01.9]} 1... a6 {[%clk 0:02:48.1]} 2. d4 {[%clk 0:03:01]} 2...
e6 {[%clk 0:02:48.9]} 3. g3 {[%clk 0:03:01.1]} 3... g6 {[%clk 0:02:49.8]} 4. Bg2
{[%clk 0:03:01.7]} 4... Bg7 {[%clk 0:02:51]} 5. O-O {[%clk 0:03:02.5]} 5... Ne7
{[%clk 0:02:51.5]} 6. c4 {[%clk 0:03:02.5]} 6... O-O {[%clk 0:02:52]} 7. Nc3
{[%clk 0:03:03.1]} 7... d6 {[%clk 0:02:52.9]} 8. e4 {[%clk 0:03:01.2]} 8... Nd7
{[%clk 0:02:53.7]} 9. Be3 {[%clk 0:03:01.2]} 9... h6 {[%clk 0:02:52.8]} 10. Qd2
{[%clk 0:03:00.7]} 10... Kh7 {[%clk 0:02:53.8]} 11. h4 {[%clk 0:02:59.2]} 11...
Rh8 {[%clk 0:02:51.4]} 12. h5 {[%clk 0:02:59.3]} 12... g5 {[%clk 0:02:51.7]} 13.
Qc2 {[%clk 0:02:56.9]} 13... Kg8 {[%clk 0:02:50.4]} 14. Rad1 {[%clk 0:02:56.2]}
14... b6 {[%clk 0:02:48.5]} 15. e5 {[%clk 0:02:55]} 15... Rb8 {[%clk 0:02:48]}
16. exd6 {[%clk 0:02:51]} 16... cxd6 {[%clk 0:02:48.5]} 17. d5 {[%clk
0:02:33.8]} 17... e5 {[%clk 0:02:48.7]} 18. Nh2 {[%clk 0:02:31.5]} 18... f5
{[%clk 0:02:46]} 19. g4 {[%clk 0:02:30.8]} 19... Nf6 {[%clk 0:02:34.3]} 20. gxf5
{[%clk 0:02:18.4]} 20... Bxf5 {[%clk 0:02:30.8]} 21. Ne4 {[%clk 0:02:18.3]}
21... Nxh5 {[%clk 0:02:25.2]} 22. f3 {[%clk 0:02:14.5]} 22... Nf4 {[%clk
0:02:17.2]} 23. Ng4 {[%clk 0:02:10.7]} 23... Nxg2 {[%clk 0:02:01.7]} 24. Qxg2
{[%clk 0:02:07]} 24... Ng6 {[%clk 0:01:56]} 25. Kf2 {[%clk 0:01:57.3]} 25... Nh4
{[%clk 0:01:51.7]} 26. Qg3 {[%clk 0:01:54]} 26... Qf8 {[%clk 0:01:50.7]} 27. Bc1
{[%clk 0:01:48.4]} 27... Bxe4 {[%clk 0:01:49.2]} 28. Ke2 {[%clk 0:01:43.4]}
28... Bg6 {[%clk 0:01:29.4]} 29. Rh1 {[%clk 0:01:43.6]} 29... Qf5 {[%clk
0:01:28]} 30. Ne3 {[%clk 0:01:38.8]} 30... Qf7 {[%clk 0:01:16.1]} 31. Rxh4
{[%clk 0:01:33.7]} 31... gxh4 {[%clk 0:01:16.5]} 32. Qxh4 {[%clk 0:01:30.1]}
32... Rf8 {[%clk 0:01:15.1]} 33. Rf1 {[%clk 0:01:30.7]} 33... Qf4 {[%clk
0:01:13.3]} 34. Qe7 {[%clk 0:01:25.6]} 34... Qd4 {[%clk 0:01:07.5]} 35. Rg1
{[%clk 0:01:15.8]} 35... Rf7 {[%clk 0:00:56.1]} 36. Qxd6 {[%clk 0:01:15.2]}
36... Bh5 {[%clk 0:00:55.7]} 37. Rg3 {[%clk 0:01:06.9]} 37... e4 {[%clk
0:00:54.1]} 38. Qe6 {[%clk 0:00:54.4]} 38... exf3+ {[%clk 0:00:50.2]} 39. Kf2
{[%clk 0:00:54.9]} 39... Qh4 {[%clk 0:00:48]} 40. Nf1 {[%clk 0:00:38.1]} 40...
Qxc4 {[%clk 0:00:42.6]} 41. Qe8+ {[%clk 0:00:23.2]} 41... Kh7 {[%clk 0:00:37.6]}
42. Qe3 {[%clk 0:00:20.6]} 42... Bd4 {[%clk 0:00:29.9]} 0-1

[Event "*** Titled Tuesday Blitz"]
[Site "Chess.com"]
[Date "2019.10.01"]
[Round "6"]
[White "doons21"]
[Black "SlavenPastar"]
[Result "1-0"]
[WhiteElo "2609"]
[BlackElo "2418"]
[TimeControl "180+2"]
[EndTime "14:25:45 PDT"]
[Termination "doons21 won by resignation"]

1. e4 {[%clk 0:03:01.9]} 1... b6 {[%clk 0:03:01.1]} 2. d4 {[%clk 0:03:02.6]}
2... Bb7 {[%clk 0:03:02.4]} 3. Bd3 {[%clk 0:03:04.1]} 3... e6 {[%clk 0:03:03.8]}
4. c3 {[%clk 0:03:03.3]} 4... c5 {[%clk 0:03:04.6]} 5. Nf3 {[%clk 0:03:03.5]}
5... Nf6 {[%clk 0:03:04.5]} 6. e5 {[%clk 0:02:52.4]} 6... Nd5 {[%clk 0:03:04.3]}
7. O-O {[%clk 0:02:53.2]} 7... cxd4 {[%clk 0:02:56.9]} 8. cxd4 {[%clk
0:02:53.7]} 8... d6 {[%clk 0:02:46.6]} 9. Bg5 {[%clk 0:02:20.2]} 9... Be7 {[%clk
0:02:40.2]} 10. Bb5+ {[%clk 0:02:19.9]} 10... Bc6 {[%clk 0:02:18.2]} 11. Bxc6+
{[%clk 0:02:08.8]} 11... Nxc6 {[%clk 0:02:20.1]} 12. Qa4 {[%clk 0:02:10]} 12...
Rc8 {[%clk 0:02:15.8]} 13. Bxe7 {[%clk 0:02:06.3]} 13... Nxe7 {[%clk 0:02:02.6]}
14. Nc3 {[%clk 0:02:04.9]} 14... O-O {[%clk 0:02:01.2]} 15. Nb5 {[%clk 0:02:05]}
15... Nf5 {[%clk 0:01:52]} 16. Nxa7 {[%clk 0:01:47.6]} 16... Nxa7 {[%clk
0:01:51.6]} 17. Qxa7 {[%clk 0:01:48.6]} 17... Rc2 {[%clk 0:01:51.3]} 18. Qa3
{[%clk 0:01:24.1]} 18... dxe5 {[%clk 0:01:47.1]} 19. dxe5 {[%clk 0:01:25.2]}
19... Qc7 {[%clk 0:01:46]} 20. Rad1 {[%clk 0:01:18.6]} 20... h5 {[%clk 0:01:41]}
21. h3 {[%clk 0:01:17.9]} 21... Rc8 {[%clk 0:01:30.4]} 22. Qb4 {[%clk 0:01:14]}
22... Qc5 {[%clk 0:01:27.2]} 23. Qxc5 {[%clk 0:01:00.3]} 23... R8xc5 {[%clk
0:01:28.2]} 24. b4 {[%clk 0:00:46.2]} 24... R5c3 {[%clk 0:01:20.4]} 25. Ng5
{[%clk 0:00:44.7]} 25... g6 {[%clk 0:01:11.2]} 26. Rd8+ {[%clk 0:00:42.1]} 26...
Kg7 {[%clk 0:01:08.4]} 27. Rd7 {[%clk 0:00:43.6]} 27... Nh6 {[%clk 0:00:54.4]}
28. Nxe6+ {[%clk 0:00:36.8]} 28... Kg8 {[%clk 0:00:54.6]} 29. Rd8+ {[%clk
0:00:24]} 29... Kh7 {[%clk 0:00:54.5]} 30. Ng5+ {[%clk 0:00:25.2]} 30... Kg7
{[%clk 0:00:54.7]} 31. e6 {[%clk 0:00:24.7]} 31... fxe6 {[%clk 0:00:49.1]} 32.
Nxe6+ {[%clk 0:00:25.9]} 32... Kf6 {[%clk 0:00:50.1]} 33. Re1 {[%clk 0:00:21.5]}
33... Rxa2 {[%clk 0:00:40.1]} 34. Rf8+ {[%clk 0:00:19.9]} 34... Ke7 {[%clk
0:00:40.8]} 35. Rb8 {[%clk 0:00:21.3]} 35... Nf5 {[%clk 0:00:26.9]} 36. Rxb6
{[%clk 0:00:20.8]} 36... Rca3 {[%clk 0:00:26.2]} 37. Nd4+ {[%clk 0:00:21.3]}
37... Kf7 {[%clk 0:00:25]} 38. Nxf5 {[%clk 0:00:20.1]} 38... gxf5 {[%clk
0:00:25.9]} 39. Re5 {[%clk 0:00:21.5]} 39... Ra1+ {[%clk 0:00:23.2]} 40. Kh2
{[%clk 0:00:22.9]} 40... f4 {[%clk 0:00:21.5]} 41. Rf5+ {[%clk 0:00:24.1]} 41...
Ke7 {[%clk 0:00:23.4]} 42. Rxf4 {[%clk 0:00:25.4]} 1-0

[Event "*** Titled Tuesday Blitz"]
[Site "Chess.com"]
[Date "2019.10.01"]
[Round "6"]
[White "brendan174"]
[Black "Nbk90"]
[Result "0-1"]
[WhiteElo "2113"]
[BlackElo "2470"]
[TimeControl "180+2"]
[EndTime "14:25:45 PDT"]
[Termination "Nbk90 won by resignation"]

1. d4 {[%clk 0:03:01.9]} 1... Nf6 {[%clk 0:02:58.9]} 2. Nc3 {[%clk 0:03:03.1]}
2... d5 {[%clk 0:02:56.6]} 3. Bf4 {[%clk 0:03:04.1]} 3... a6 {[%clk 0:02:55]} 4.
e3 {[%clk 0:03:04.5]} 4... e6 {[%clk 0:02:54.1]} 5. Nf3 {[%clk 0:03:04.7]} 5...
Bd6 {[%clk 0:02:52.5]} 6. Bd3 {[%clk 0:03:04.3]} 6... O-O {[%clk 0:02:50.5]} 7.
Ne5 {[%clk 0:02:59.3]} 7... c5 {[%clk 0:02:48.5]} 8. Bg3 {[%clk 0:02:56]} 8...
Nc6 {[%clk 0:02:45.7]} 9. Nxc6 {[%clk 0:02:52.5]} 9... bxc6 {[%clk 0:02:45.6]}
10. Bxd6 {[%clk 0:02:47.9]} 10... Qxd6 {[%clk 0:02:45]} 11. dxc5 {[%clk
0:02:49.8]} 11... Qxc5 {[%clk 0:02:45.1]} 12. O-O {[%clk 0:02:51.4]} 12... e5
{[%clk 0:02:43.5]} 13. e4 {[%clk 0:02:29.5]} 13... Bg4 {[%clk 0:02:41.7]} 14.
Qe1 {[%clk 0:02:22.7]} 14... Rfe8 {[%clk 0:02:37.8]} 15. exd5 {[%clk 0:02:20.6]}
15... cxd5 {[%clk 0:02:37.2]} 16. h3 {[%clk 0:02:02.4]} 16... Bh5 {[%clk
0:02:33.2]} 17. Rc1 {[%clk 0:01:54.9]} 17... e4 {[%clk 0:02:24.7]} 18. Be2
{[%clk 0:01:55.9]} 18... Bg6 {[%clk 0:02:25.5]} 19. Kh1 {[%clk 0:01:43.8]} 19...
d4 {[%clk 0:02:24.7]} 20. Na4 {[%clk 0:01:33.2]} 20... Qc6 {[%clk 0:02:20.2]}
21. b3 {[%clk 0:01:33.4]} 21... e3 {[%clk 0:02:11.6]} 22. Bf3 {[%clk 0:01:22.6]}
22... Qe6 {[%clk 0:01:48.4]} 23. Bxa8 {[%clk 0:01:12.2]} 23... Rxa8 {[%clk
0:01:49.4]} 24. fxe3 {[%clk 0:01:09.6]} 24... dxe3 {[%clk 0:01:47.7]} 25. Qg3
{[%clk 0:01:06]} 25... Re8 {[%clk 0:01:43]} 26. Nc5 {[%clk 0:00:43.1]} 26... Qd5
{[%clk 0:01:36]} 27. Nd3 {[%clk 0:00:28.3]} 27... Qd4 {[%clk 0:01:22.2]} 28. Nf4
{[%clk 0:00:26.4]} 28... Ne4 {[%clk 0:01:20.6]} 29. Qh4 {[%clk 0:00:18.1]} 29...
Nf2+ {[%clk 0:01:15.8]} 30. Kh2 {[%clk 0:00:19.5]} 30... Re4 {[%clk 0:01:06.5]}
31. g3 {[%clk 0:00:06.6]} 31... e2 {[%clk 0:01:01.3]} 32. Rfe1 {[%clk 0:00:05]}
32... Qd2 {[%clk 0:00:39.3]} 33. Qg5 {[%clk 0:00:04.3]} 33... h6 {[%clk
0:00:35.6]} 34. Qh4 {[%clk 0:00:02.9]} 34... Nd1 {[%clk 0:00:30]} 35. Rcxd1
{[%clk 0:00:02.9]} 35... exd1=Q+ {[%clk 0:00:29.5]} 0-1

[Event "*** Titled Tuesday Blitz"]
[Site "Chess.com"]
[Date "2019.10.01"]
[Round "6"]
[White "sergeikim"]
[Black "dopolian"]
[Result "1-0"]
[WhiteElo "2485"]
[BlackElo "2343"]
[TimeControl "180+2"]
[EndTime "14:25:54 PDT"]
[Termination "sergeikim won by checkmate"]

1. d4 {[%clk 0:03:01.9]} 1... Nf6 {[%clk 0:03:00.8]} 2. c4 {[%clk 0:03:02.7]}
2... c5 {[%clk 0:03:01.5]} 3. d5 {[%clk 0:03:03.3]} 3... e6 {[%clk 0:03:02.8]}
4. Nc3 {[%clk 0:03:03.4]} 4... exd5 {[%clk 0:03:04.1]} 5. cxd5 {[%clk
0:03:04.5]} 5... d6 {[%clk 0:03:05.6]} 6. e4 {[%clk 0:03:05.2]} 6... g6 {[%clk
0:03:07.1]} 7. Nge2 {[%clk 0:03:06.1]} 7... Bg7 {[%clk 0:03:07.1]} 8. Ng3 {[%clk
0:03:06.8]} 8... a6 {[%clk 0:03:07.5]} 9. a4 {[%clk 0:03:07]} 9... h5 {[%clk
0:03:08.2]} 10. Be2 {[%clk 0:03:06.9]} 10... O-O {[%clk 0:03:06.9]} 11. Bg5
{[%clk 0:03:06.4]} 11... Qa5 {[%clk 0:02:58.9]} 12. Qd2 {[%clk 0:03:05.4]} 12...
Nbd7 {[%clk 0:02:55.6]} 13. O-O {[%clk 0:03:05.5]} 13... Nh7 {[%clk 0:02:50.2]}
14. Be7 {[%clk 0:03:02.9]} 14... Re8 {[%clk 0:02:46.3]} 15. Bxd6 {[%clk
0:03:03.3]} 15... h4 {[%clk 0:02:33.5]} 16. Nh1 {[%clk 0:03:03.2]} 16... Qb4
{[%clk 0:02:03.9]} 17. f3 {[%clk 0:02:26.4]} 17... Bd4+ {[%clk 0:01:58.5]} 18.
Nf2 {[%clk 0:02:26]} 18... Nhf6 {[%clk 0:01:42.6]} 19. Kh1 {[%clk 0:02:14.3]}
19... Nh5 {[%clk 0:01:38.9]} 20. Nd3 {[%clk 0:02:12.1]} 20... Qb6 {[%clk
0:01:39]} 21. Bf4 {[%clk 0:02:04.7]} 21... Nf8 {[%clk 0:00:39.3]} 22. a5 {[%clk
0:01:58.3]} 22... Qd8 {[%clk 0:00:35.6]} 23. Bg5 {[%clk 0:01:58]} 23... Bf6
{[%clk 0:00:32.8]} 24. Bxf6 {[%clk 0:01:57.3]} 24... Qxf6 {[%clk 0:00:34.7]} 25.
f4 {[%clk 0:01:57]} 25... Ng3+ {[%clk 0:00:28.3]} 26. Kg1 {[%clk 0:01:36.3]}
26... Qd4+ {[%clk 0:00:24.5]} 27. Rf2 {[%clk 0:01:33.6]} 27... Nxe4 {[%clk
0:00:20.1]} 28. Nxe4 {[%clk 0:01:33.8]} 28... Qxe4 {[%clk 0:00:19.1]} 29. Nxc5
{[%clk 0:01:27.2]} 29... Qf5 {[%clk 0:00:10.2]} 30. b4 {[%clk 0:01:11]} 30...
Nd7 {[%clk 0:00:11]} 31. Rd1 {[%clk 0:01:04.3]} 31... Nf6 {[%clk 0:00:11.6]} 32.
Bf3 {[%clk 0:01:04.4]} 32... Bd7 {[%clk 0:00:08.5]} 33. Nxb7 {[%clk 0:01:00.5]}
33... Ng4 {[%clk 0:00:04.6]} 34. Nd6 {[%clk 0:00:54.9]} 34... Nxf2 {[%clk
0:00:04.7]} 35. Nxf5 {[%clk 0:00:54.7]} 35... Nxd1 {[%clk 0:00:05.2]} 36. Nd6
{[%clk 0:00:47.7]} 36... Ba4 {[%clk 0:00:03]} 37. Nxe8 {[%clk 0:00:46.5]} 37...
Rxe8 {[%clk 0:00:04.9]} 38. Bxd1 {[%clk 0:00:46.2]} 38... Bb5 {[%clk 0:00:06.6]}
39. d6 {[%clk 0:00:43.5]} 39... Kf8 {[%clk 0:00:06]} 40. Bf3 {[%clk 0:00:40.9]}
40... Rd8 {[%clk 0:00:05]} 41. Qd4 {[%clk 0:00:38.5]} 41... Rc8 {[%clk
0:00:05.1]} 42. Qh8# {[%clk 0:00:33.5]} 1-0

[Event "*** Titled Tuesday Blitz"]
[Site "Chess.com"]
[Date "2019.10.01"]
[Round "6"]
[White "GremioPrudente"]
[Black "Tonychess32"]
[Result "1-0"]
[WhiteElo "2293"]
[BlackElo "2407"]
[TimeControl "180+2"]
[EndTime "14:25:55 PDT"]
[Termination "GremioPrudente won by checkmate"]

1. Nf3 {[%clk 0:03:01.9]} 1... Nf6 {[%clk 0:02:59.6]} 2. c4 {[%clk 0:03:03]}
2... e6 {[%clk 0:02:57.8]} 3. Nc3 {[%clk 0:03:03.7]} 3... d5 {[%clk 0:02:59.4]}
4. d4 {[%clk 0:03:04.9]} 4... Be7 {[%clk 0:03:00.7]} 5. Bg5 {[%clk 0:03:05.8]}
5... O-O {[%clk 0:03:02]} 6. e3 {[%clk 0:03:06]} 6... Nbd7 {[%clk 0:02:57.6]} 7.
Bd3 {[%clk 0:03:01.6]} 7... dxc4 {[%clk 0:02:57.4]} 8. Bxc4 {[%clk 0:03:01.2]}
8... a6 {[%clk 0:02:59.1]} 9. O-O {[%clk 0:02:59]} 9... b5 {[%clk 0:03:00.6]}
10. Bd3 {[%clk 0:02:58.7]} 10... c5 {[%clk 0:03:02.2]} 11. Qe2 {[%clk
0:02:25.6]} 11... cxd4 {[%clk 0:02:34]} 12. exd4 {[%clk 0:02:16.4]} 12... Bb7
{[%clk 0:02:34.9]} 13. Ne5 {[%clk 0:02:14.6]} 13... Nb6 {[%clk 0:01:55]} 14.
Rfd1 {[%clk 0:02:10.1]} 14... Nbd5 {[%clk 0:01:49]} 15. Rac1 {[%clk 0:02:04.9]}
15... h6 {[%clk 0:01:50.1]} 16. Bh4 {[%clk 0:02:05.1]} 16... Nf4 {[%clk
0:01:50.5]} 17. Qd2 {[%clk 0:01:53.5]} 17... Nxg2 {[%clk 0:01:29.6]} 18. Bxf6
{[%clk 0:01:54.3]} 18... Bxf6 {[%clk 0:01:24.3]} 19. Ne4 {[%clk 0:01:55.4]}
19... Nh4 {[%clk 0:01:13.8]} 20. Qe3 {[%clk 0:01:49.1]} 20... Nf5 {[%clk
0:01:02.6]} 21. Nxf6+ {[%clk 0:01:38.6]} 21... Qxf6 {[%clk 0:00:58.6]} 22. Bxf5
{[%clk 0:01:39.5]} 22... Qxf5 {[%clk 0:00:58.9]} 23. Rc7 {[%clk 0:01:37.2]}
23... Bd5 {[%clk 0:00:57.1]} 24. Rdc1 {[%clk 0:01:31]} 24... Bxa2 {[%clk
0:00:36.3]} 25. b3 {[%clk 0:01:26.1]} 25... a5 {[%clk 0:00:23.8]} 26. Nc6 {[%clk
0:01:18.7]} 26... Qg4+ {[%clk 0:00:22.2]} 27. Kh1 {[%clk 0:01:14.2]} 27... a4
{[%clk 0:00:21.9]} 28. Ne7+ {[%clk 0:01:02.9]} 28... Kh8 {[%clk 0:00:22.2]} 29.
Rg1 {[%clk 0:01:04.7]} 29... Qh5 {[%clk 0:00:23.4]} 30. Rc5 {[%clk 0:00:46.2]}
30... Qh4 {[%clk 0:00:15.1]} 31. Qe5 {[%clk 0:00:45.1]} 31... Rg8 {[%clk
0:00:11.5]} 32. Nxg8 {[%clk 0:00:36.7]} 32... Rxg8 {[%clk 0:00:12.9]} 33. Rc8
{[%clk 0:00:30.1]} 33... f6 {[%clk 0:00:07.1]} 34. Rxg8+ {[%clk 0:00:23.5]}
34... Kxg8 {[%clk 0:00:09]} 35. Qxe6+ {[%clk 0:00:25.4]} 35... Kf8 {[%clk
0:00:10]} 36. Re1 {[%clk 0:00:18.9]} 36... Qh5 {[%clk 0:00:06.6]} 37. Qc8+
{[%clk 0:00:10.8]} 37... Kf7 {[%clk 0:00:07.9]} 38. Qe8# {[%clk 0:00:11.8]} 1-0

[Event "*** Titled Tuesday Blitz"]
[Site "Chess.com"]
[Date "2019.10.01"]
[Round "6"]
[White "ShadowJolteon"]
[Black "dmosesov"]
[Result "1-0"]
[WhiteElo "2369"]
[BlackElo "2539"]
[TimeControl "180+2"]
[EndTime "14:26:13 PDT"]
[Termination "ShadowJolteon won by checkmate"]

1. d4 {[%clk 0:03:01.9]} 1... Nf6 {[%clk 0:03:00.8]} 2. c4 {[%clk 0:03:00.3]}
2... e6 {[%clk 0:03:02]} 3. g3 {[%clk 0:03:01.6]} 3... c5 {[%clk 0:02:59.3]} 4.
Nf3 {[%clk 0:03:02.5]} 4... Qa5+ {[%clk 0:02:58.8]} 5. Qd2 {[%clk 0:03:00.5]}
5... Qxd2+ {[%clk 0:02:46]} 6. Bxd2 {[%clk 0:03:00.1]} 6... Nc6 {[%clk
0:02:44.3]} 7. e3 {[%clk 0:02:53.4]} 7... b6 {[%clk 0:02:38.4]} 8. Bg2 {[%clk
0:02:54.2]} 8... Bb7 {[%clk 0:02:39.4]} 9. O-O {[%clk 0:02:55.4]} 9... Be7
{[%clk 0:02:40.1]} 10. Nc3 {[%clk 0:02:56.4]} 10... O-O {[%clk 0:02:40.1]} 11.
Rfd1 {[%clk 0:02:56.3]} 11... cxd4 {[%clk 0:02:27.2]} 12. exd4 {[%clk 0:02:57]}
12... Rac8 {[%clk 0:02:18.8]} 13. b3 {[%clk 0:02:57.7]} 13... Nb4 {[%clk
0:02:08.7]} 14. Bg5 {[%clk 0:02:34.4]} 14... h6 {[%clk 0:02:02.6]} 15. Bxf6
{[%clk 0:02:30.9]} 15... Bxf6 {[%clk 0:02:04.5]} 16. Ne5 {[%clk 0:02:32.7]}
16... Bxg2 {[%clk 0:02:02.2]} 17. Kxg2 {[%clk 0:02:34.6]} 17... Rfd8 {[%clk
0:01:59.5]} 18. a3 {[%clk 0:02:31]} 18... Nc2 {[%clk 0:01:55]} 19. Rab1 {[%clk
0:02:02.3]} 19... Nxd4 {[%clk 0:01:53]} 20. Ng4 {[%clk 0:01:56.4]} 20... Nc6
{[%clk 0:01:39.6]} 21. Nxf6+ {[%clk 0:01:56.8]} 21... gxf6 {[%clk 0:01:41.5]}
22. Ne4 {[%clk 0:01:55]} 22... Kg7 {[%clk 0:01:41.1]} 23. Nd6 {[%clk 0:01:44]}
23... Rb8 {[%clk 0:01:41.9]} 24. Rd3 {[%clk 0:01:44.8]} 24... Ne5 {[%clk
0:01:31.4]} 25. Rd2 {[%clk 0:01:43.9]} 25... h5 {[%clk 0:01:28.9]} 26. f4 {[%clk
0:01:44.3]} 26... Ng6 {[%clk 0:01:23.9]} 27. Rbd1 {[%clk 0:01:44.6]} 27... h4
{[%clk 0:01:24.2]} 28. Kf3 {[%clk 0:01:34.3]} 28... hxg3 {[%clk 0:01:24.8]} 29.
hxg3 {[%clk 0:01:35.2]} 29... a6 {[%clk 0:01:20.7]} 30. g4 {[%clk 0:01:33.4]}
30... Rh8 {[%clk 0:01:11.6]} 31. Kg3 {[%clk 0:01:28.2]} 31... Rh7 {[%clk
0:01:12.6]} 32. Ne4 {[%clk 0:01:24.6]} 32... Rbh8 {[%clk 0:01:11.6]} 33. Nf2
{[%clk 0:01:23.6]} 33... Rh2 {[%clk 0:01:04]} 34. f5 {[%clk 0:01:11.1]} 34...
Ne5 {[%clk 0:00:59]} 35. Rd6 {[%clk 0:00:47.8]} 35... exf5 {[%clk 0:00:35.8]}
36. gxf5 {[%clk 0:00:48.3]} 36... R2h5 {[%clk 0:00:37]} 37. Rxb6 {[%clk
0:00:37.6]} 37... Rg5+ {[%clk 0:00:37.1]} 38. Kf4 {[%clk 0:00:35.3]} 38... Rh4+
{[%clk 0:00:36]} 39. Ke3 {[%clk 0:00:36.6]} 39... Rxf5 {[%clk 0:00:28.5]} 40.
Rg1+ {[%clk 0:00:36.3]} 40... Kf8 {[%clk 0:00:29.6]} 41. Rg3 {[%clk 0:00:35.7]}
41... Ke7 {[%clk 0:00:24.4]} 42. Ne4 {[%clk 0:00:31.7]} 42... Rff4 {[%clk
0:00:20.4]} 43. Nc3 {[%clk 0:00:21]} 43... Rxc4 {[%clk 0:00:11.1]} 44. Nd5+
{[%clk 0:00:20.4]} 44... Kd8 {[%clk 0:00:12.3]} 45. Rg8# {[%clk 0:00:19.2]} 1-0